lending/lending_fUSD_20240510
["ID","MTS","AMOUNT","RATE_DAILY","PERIOD"]
[326802724,1715382638744,-204.38608798,0.00012895,2]
[326802725,1715382638753,-432.19781582,0.00012895,2]
[326802726,1715382638763,-159.9532496,0.00012895,2]
[326802727,1715382638772,-155.11704737,0.00012895,2]
[326802728,1715382638781,-1271.16074443,0.00012895,2]
[326802729,1715382638791,-252.29415644,0.00012895,2]
[326802730,1715382638800,-156.34895342,0.00012895,2]
[326802731,1715382638809,-533.3161929,0.00012895,2]
[326802732,1715382638818,-155.0,0.00012895,2]
[326802733,1715382638827,-1474.85989192,0.00012895,2]
[326802734,1715382638836,-221.3465547,0.00012895,2]
[326802735,1715382638845,-1129.38038378,0.00012895,2]
[326802736,1715382638855,-4735.92112712,0.00012895,2]
[326802737,1715382638864,-243.46796139,0.00012895,2]
[326802738,1715382638873,-27235.9763,0.00012897,2]
[326802739,1715382638883,-44079.7874,0.00012897,2]
[326802740,1715382638892,-7500.0,0.00012897,2]
[326802741,1715382638902,-153.77612288,0.00012897,2]
[326802742,1715382638911,-325.89157978,0.00012897,2]
[326802743,1715382638921,-10000.0,0.000129,2]
[326802744,1715382638931,-1000.0,0.000129,2]
[326802745,1715382638941,-300.0,0.000129,4]
[326802746,1715382638950,-1160.41532092,0.000129,2]
[326802747,1715382638960,-292.19269451,0.00012925,2]
[326802748,1715382638969,-469.94945749,0.00012925,2]
[326802749,1715382638979,-155.9463281,0.00012966,2]
[326802750,1715382638988,-1086.16391134,0.00012968,2]
[326802751,1715382638997,-3488.17806797,0.00012985,2]
[326802752,1715382639007,-181.49625513,0.00012987,2]
[326802753,1715382639016,-165.04,0.00012987,2]
[326802754,1715382639026,-165.04,0.00012989,2]
[326802755,1715382639035,-151.62,0.0001299,2]
[326802756,1715382639044,-151.62,0.0001299,2]
[326802757,1715382639054,-181.49625513,0.0001299,2]
[326802758,1715382639064,-181.49625513,0.0001299,2]
[326802759,1715382639074,-165.04,0.0001299,2]
[326802760,1715382639084,-165.04,0.0001299,2]
[326802761,1715382639094,-427.91933056,0.0001299,2]
[326802762,1715382639104,-491.08997041,0.00012997,2]
[326802763,1715382639113,-156.34146276,0.00012997,2]
[326802764,1715382639124,-155.47393474,0.00012997,2]
[326802765,1715382639134,-320.95413161,0.00012997,2]
[326802766,1715382639144,-304.30621889,0.00012997,2]
[326802767,1715382639154,-206.88313584,0.00012997,2]
[326802768,1715382639164,-155.0,0.00012997,2]
[326802769,1715382639174,-155.0,0.00012997,2]
[326802770,1715382639183,-204.34387367,0.00012997,2]
[326802771,1715382639193,-249.59658488,0.00012997,2]
[326802772,1715382639202,-155.0,0.00012997,2]
[326802773,1715382639212,-155.0,0.00012997,2]
[326802774,1715382639222,-2184.31716652,0.00012997,2]
[326802775,1715382639233,-324.32861415,0.00012997,2]
[326802776,1715382639243,-178.66688519,0.00012997,2]
[326802777,1715382639253,-788.18220101,0.00012997,2]
[326802778,1715382639263,-208.17791052,0.00012997,2]
[326802779,1715382639273,-75662.28278881,0.00012997,2]
[326802780,1715382639285,-92695.24652248,0.00012997,2]
[326802781,1715382639297,-3319.01570001,0.00012997,2]
[326802782,1715382640505,-5695.7437989,0.00012997,2]
[326802783,1715382640516,-60594.50932786,0.00012997,2]
[326802784,1715382640528,-128173.99749711,0.00012997,2]
[326802852,1715382642450,-527.34875351,0.00012997,2]
[326802854,1715382642461,-1424.33460233,0.00012997,2]
[326802856,1715382642473,-278.13525569,0.00012997,2]
[326802858,1715382642485,-474.95316478,0.00012997,2]
[326802867,1715382642550,-652.61837688,0.00012997,2]
[326802869,1715382642561,-293.69901908,0.00012997,2]
[326802871,1715382642572,-517.83243032,0.00012997,2]
[326802873,1715382642588,-2758.11352494,0.00012997,2]
[326802876,1715382642599,-2032.2,0.00012997,2]
[326802884,1715382642672,-202959.83097687,0.00012997,2]
[326802886,1715382642681,-201.21825387,0.00012997,2]
[326802888,1715382642690,-4203.840919,0.00012997,2]
[326802890,1715382642699,-240.93556492,0.00012998,7]
[326802892,1715382642709,-179.49292044,0.00012998,2]
[326802894,1715382642718,-936.8170768,0.00012999,2]
[326802896,1715382642728,-3024.88433628,0.00012999,2]
[326802899,1715382642742,-180.32091532,0.00012999,2]
[326802901,1715382642752,-19701.87170514,0.00012999,2]
[326802902,1715382642764,-1034.6412428,0.00012999,3]
[326802904,1715382642774,-250.42777297,0.00012999,2]
[326802906,1715382642784,-369.89957834,0.00012999,2]
[326802908,1715382642794,-399.42482649,0.00012999,2]
[326802911,1715382642804,-8896697.42513334,0.00013,2]
[326802913,1715382642813,-1000.0,0.00013036,2]
[326802915,1715382642824,-195.58,0.00013093,2]
[326802917,1715382642833,-1017.22,0.00013425,2]
[326802919,1715382642843,-764.69,0.00013425,2]
[326802921,1715382642853,-170.31,0.00013464,2]
[326802923,1715382642863,-1160.41532086,0.00013565,2]
[326802925,1715382642872,-2912.0419,0.0001363,2]
[326802927,1715382642882,-2912.0419,0.0001364,2]
[326802929,1715382642891,-2912.04191,0.0001368,2]
[326802931,1715382642900,-200.0,0.00013699,2]
[326802933,1715382642910,-2751.0,0.00013699,2]
[326802935,1715382642921,-500.0,0.00013699,2]
[326802937,1715382642929,-8835.6,0.00013699,2]
[326802939,1715382642939,-466.33040226,0.000137,2]
[326802941,1715382642948,-2912.0419,0.0001371,2]
[326802943,1715382642957,-2912.04191,0.0001376,2]
[326802946,1715382642966,-2912.0419,0.0001379,2]
[326802948,1715382642975,-967.218836,0.00013973,2]
[326802951,1715382642988,-10000.0,0.00014144,2]
[326802954,1715382642997,-233.0,0.00014157,2]
[326802957,1715382643006,-1160.41532086,0.00014232,2]
[326802960,1715382643016,-4711.11732673,0.00014277,2]
[326802963,1715382643025,-3725.97,0.00014322,2]
[326802965,1715382643034,-340.69,0.00014381,2]
[326802967,1715382643043,-1000.0,0.00014485,2]
[326802969,1715382643051,-195.58,0.00014548,2]
[326802971,1715382643060,-7297.75319291,0.0001461,2]
[326802973,1715382643069,-5000.0,0.0001461,2]
[326802975,1715382643079,-5000.0,0.0001461,2]
[326802977,1715382643088,-5000.0,0.0001461,2]
[326802979,1715382643097,-5000.0,0.0001461,2]
[326802981,1715382643106,-1933.0,0.00014649,2]
[326802983,1715382643114,-270.0,0.00014649,2]
[326802984,1715382643123,-543.0,0.00014649,2]
[326802986,1715382643133,-421.0,0.00014649,2]
[326802988,1715382643142,-808.0,0.00014649,2]
[326802990,1715382643151,-611.0,0.00014649,2]
[326802992,1715382643160,-438.0,0.00014649,2]
[326802994,1715382643169,-253.0,0.00014649,2]
[326802996,1715382643178,-150.0,0.00014649,2]
[326803030,1715382643454,-1479.0,0.00014649,2]
[326803032,1715382643463,-150.0,0.00014649,2]
[326803034,1715382643473,-2489.0,0.00014649,2]
[326803036,1715382643482,-215.0,0.00014655,2]
[326803038,1715382643492,-1645.0,0.00014655,2]
[326803040,1715382643501,-1138.0,0.00014655,2]
[326803042,1715382643510,-444.0,0.00014655,2]
[326803044,1715382643519,-3155.0,0.00014655,2]
[326803046,1715382643528,-5747.0,0.0001467,2]
[326803048,1715382643537,-288.0,0.0001467,2]
[326803050,1715382643546,-5909.0,0.0001467,2]
[326803052,1715382643555,-37815.0,0.0001467,2]
[326803054,1715382643564,-2295.0,0.0001467,2]
[326803056,1715382643574,-1235.0,0.00014728,2]
[326803058,1715382643584,-967.218836,0.00014795,2]
[326803060,1715382643597,-972.0,0.000148,2]
[326803062,1715382643606,-1398.0,0.000148,2]
[326803063,1715382643615,-2157.0,0.000148,2]
[326803066,1715382643624,-1160.41532086,0.000149,2]
[326803068,1715382643636,-4214.385869,0.00015,2]
[326803070,1715382643645,-282.22154129,0.00015,2]
[326803072,1715382643654,-155.0,0.00015,2]
[326803074,1715382643664,-30000.0,0.00015,3]
[326803076,1715382643674,-300.0,0.00015068,2]
[326803079,1715382643694,-789.0,0.000151,2]
[326803081,1715382643705,-4906.0,0.000152,2]
[326803083,1715382643715,-170.31,0.00015387,2]
[326803085,1715382643725,-4711.11732673,0.0001553,2]
[326803087,1715382643734,-1160.41532086,0.00015567,2]
[326803089,1715382643744,-967.218836,0.00015616,2]
[326803091,1715382643753,-340.69,0.00015819,2]
[326803093,1715382643764,-167.0,0.00015831,2]
[326803095,1715382643774,-167.0,0.00015831,2]
[326803097,1715382643783,-1000.0,0.00015933,2]
[326803099,1715382643793,-3078.76371322,0.00016,2]
[326803101,1715382643803,-195.58,0.00016002,2]
[326803103,1715382643813,-831.0,0.00016116,2]
[326803105,1715382643822,-7119.41,0.00016164,2]
[326803107,1715382643832,-1160.41532086,0.00016235,2]
[326803109,1715382643842,-167.0,0.00016354,2]
[326803111,1715382643852,-165.7,0.00016407,2]
[326803113,1715382643861,-469.94945749,0.00016413,2]
[326803115,1715382643871,-967.218836,0.00016438,2]
[326803117,1715382643881,-200.0,0.00016438,2]
[326803119,1715382643891,-300.0,0.00016438,2]
[326803121,1715382643900,-1671.41,0.00016438,2]
[326803123,1715382643910,-1226.23788858,0.000165,2]
[326803125,1715382643919,-454.268,0.00016573,2]
[326803127,1715382643929,-454.268,0.00016648,2]
[326803129,1715382643939,-454.268,0.00016725,2]
[326803132,1715382643949,-4711.11732673,0.00016782,2]
[326803134,1715382643959,-454.268,0.00016802,2]
[326803136,1715382643969,-1000.0,0.00016849,2]
[326803138,1715382643979,-167.0,0.00016876,2]
[326803140,1715382643991,-454.268,0.00016879,2]
[326803142,1715382644001,-164.41431931,0.000169,2]
[326803144,1715382644010,-1160.41532086,0.00016902,2]
[326803146,1715382644021,-454.268,0.00016958,2]
[326803148,1715382644031,-454.268,0.00017037,2]
[326803150,1715382644041,-3725.97,0.00017062,2]
[326803152,1715382644051,-454.268,0.00017117,2]
[326803154,1715382644061,-167.0,0.00017137,2]
[326803156,1715382644071,-340.69,0.00017257,2]
[326803158,1715382644081,-967.218836,0.0001726,2]
[326803160,1715382644090,-170.31,0.00017311,2]
[326803162,1715382644100,-1000.0,0.00017382,2]
[326803164,1715382644110,-167.0,0.00017399,2]
[326803166,1715382644120,-165.7,0.00017406,2]
[326803168,1715382644129,-195.58,0.00017457,2]
[326803170,1715382644139,-1160.41532086,0.0001757,2]
[326803172,1715382644148,-1789.0,0.00017649,2]
[326803174,1715382644159,-150.0,0.00017649,2]
[326803176,1715382644169,-543.0,0.00017649,2]
[326803177,1715382644178,-183.072,0.00017649,2]
[326803179,1715382644188,-611.0,0.00017649,2]
[326803181,1715382644197,-1476.0,0.00017649,2]
[326803182,1715382644206,-2412.0,0.00017649,2]
[326803183,1715382644216,-215.0,0.00017655,2]
[326803184,1715382644225,-1645.0,0.00017655,2]
[326803185,1715382644237,-1138.0,0.00017655,2]
[326803186,1715382644246,-444.0,0.00017655,2]
[326803187,1715382644256,-3155.0,0.00017655,2]
[326803188,1715382644265,-5747.0,0.0001767,2]
[326803189,1715382644274,-5904.0,0.0001767,2]
[326803190,1715382644284,-37815.0,0.0001767,2]
[326803191,1715382644294,-2295.0,0.0001767,2]
[326803192,1715382644308,-155.63684937,0.00017697,2]
[326803193,1715382644319,-158.82332061,0.00017697,2]
[326803194,1715382644328,-1108.8358232,0.00017697,2]
[326803195,1715382644338,-156.58353072,0.00017697,2]
[326803196,1715382644348,-7658.01342953,0.00017697,2]
[326803198,1715382644358,-219.31968758,0.00017697,2]
[326803201,1715382644368,-155.40867323,0.00017697,2]
[326803204,1715382644378,-156.20328644,0.00017697,2]
[326803207,1715382644388,-155.0,0.00017697,2]
[326803210,1715382644397,-156.37954986,0.00017697,2]
[326803213,1715382644407,-202.82650177,0.00017697,2]
[326803216,1715382644417,-164.14462552,0.00017697,2]
[326803219,1715382644427,-155.27839442,0.00017697,2]
[326803221,1715382644437,-568.35691271,0.00017697,2]
[326803224,1715382644447,-155.47395638,0.00017697,2]
[326803227,1715382644457,-521.8596669,0.00017698,2]
[326803229,1715382644467,-971.0,0.000178,2]
[326803231,1715382644478,-1396.0,0.000178,2]
[326803233,1715382644488,-2157.0,0.000178,2]
[326803236,1715382644498,-10686.80035912,0.0001788,2]
[326803238,1715382644508,-10686.80035911,0.0001788,2]
[326803240,1715382644518,-10686.80035911,0.0001788,2]
[326803241,1715382644528,-10686.80035911,0.0001788,2]
[326803242,1715382644539,-10686.80035911,0.0001788,2]
[326803243,1715382644548,-167.0,0.00017921,2]
[326803244,1715382644558,-30000.0,0.00018,2]
[326803245,1715382644568,-317.37038368,0.00018,2]
[326803246,1715382644581,-4711.11732673,0.00018034,2]
[326803247,1715382644595,-967.218836,0.00018082,2]
[326803248,1715382644604,-420.16,0.00018283,2]
[326803249,1715382644614,-420.16,0.00018283,2]
[326803250,1715382644626,-165.7,0.00018405,3]
[326803251,1715382644636,-167.0,0.00018444,2]
[326803252,1715382644646,-167.0,0.00018444,2]
[326803253,1715382644657,-967.218836,0.00018904,2]
[326803254,1715382644669,-10686.80035911,0.0001891,2]
[326803255,1715382644679,-262.42133684,0.00018999,2]
[326803256,1715382644689,-23401.85537524,0.00019,5]
[326803257,1715382644699,-5000.0,0.00019,2]
[326803258,1715382644709,-155.42345445,0.00019,2]
[326803259,1715382644719,-500.0,0.00019,2]
[326803260,1715382644728,-500.0,0.00019,2]
[326803261,1715382644740,-500.0,0.00019,2]
[326803262,1715382644750,-500.0,0.00019,2]
[326803263,1715382644759,-500.0,0.00019,2]
[326803264,1715382644769,-500.0,0.00019,2]
[326803265,1715382644778,-500.0,0.00019,2]
[326803266,1715382644788,-500.0,0.00019,2]
[326803267,1715382644797,-500.0,0.00019,2]
[326803268,1715382644806,-500.0,0.00019,2]
[326803269,1715382644815,-500.0,0.00019,2]
[326803270,1715382644825,-500.0,0.00019,2]
[326803271,1715382644835,-500.0,0.00019,2]
[326803272,1715382644845,-500.0,0.00019,2]
[326803273,1715382644854,-500.0,0.00019,2]
[326803274,1715382644864,-500.0,0.00019,2]
[326803275,1715382644875,-500.0,0.00019,2]
[326803276,1715382644884,-500.0,0.00019,2]
[326803277,1715382644893,-500.0,0.00019,2]
[326803278,1715382644903,-485.85827156,0.00019178,2]
[326803279,1715382644913,-293.80391785,0.00019178,2]
[326803280,1715382644923,-391.44285879,0.00019178,2]
[326803281,1715382644934,-500.0,0.00019178,2]
[326803282,1715382644944,-500.0,0.00019178,2]
[326803283,1715382644953,-500.0,0.00019178,2]
[326803284,1715382644963,-500.0,0.00019178,2]
[326803285,1715382644972,-357.09273609,0.00019178,2]
[326803286,1715382644984,-250.0,0.00019178,2]
[326803287,1715382644994,-500.0,0.00019178,2]
[326803288,1715382645004,-500.0,0.00019178,2]
[326803289,1715382645013,-200.0,0.00019178,2]
[326803290,1715382645023,-200.0,0.00019178,2]
[326803291,1715382645033,-200.0,0.00019178,2]
[326803292,1715382645043,-200.0,0.00019178,2]
[326803293,1715382645053,-200.0,0.00019178,2]
[326803294,1715382645063,-200.0,0.00019178,2]
[326803295,1715382645072,-172.0,0.00019178,2]
[326803296,1715382645082,-384.87,0.00019178,2]
[326803297,1715382645092,-3130.1,0.00019178,2]
[326803298,1715382645102,-4929.07,0.00019178,2]
[326803299,1715382645112,-8835.6,0.00019178,2]
[326803300,1715382645121,-200.0,0.00019178,2]
[326803301,1715382645131,-3877.77520092,0.000192,2]
[326803302,1715382645141,-1304.11,0.000192,2]
[326803303,1715382645151,-951.75,0.000192,2]
[326803304,1715382645161,-1006.66,0.000192,2]
[326803305,1715382645171,-4711.11732673,0.00019286,2]
[326803306,1715382645181,-427.52379173,0.00019358,2]
[326803307,1715382645192,-18598.38662896,0.00019395,2]
[326803308,1715382645201,-165.7,0.00019404,3]
[326803309,1715382645211,-150.5,0.0001967,15]
[326803310,1715382645221,-150.5,0.0001967,15]
[326803311,1715382645232,-150.5,0.0001968,15]
[326803312,1715382645242,-150.5,0.0001968,15]
[326803313,1715382645252,-150.5,0.0001969,15]
[326803314,1715382645262,-150.5,0.0001969,15]
[326803315,1715382645272,-500.0,0.000198,2]
[326803316,1715382645281,-500.0,0.000198,2]
[326803317,1715382645292,-500.0,0.000198,2]
[326803318,1715382645301,-500.0,0.000198,2]
[326803319,1715382645311,-500.0,0.000198,2]
[326803320,1715382645322,-500.0,0.000198,2]
[326803321,1715382645332,-500.0,0.000198,2]
[326803322,1715382645342,-500.0,0.000198,2]
[326803323,1715382645352,-500.0,0.000198,2]
[326803324,1715382645361,-500.0,0.000198,2]
[326803325,1715382645371,-500.0,0.000198,2]
[326803326,1715382645381,-500.0,0.000198,2]
[326803327,1715382645390,-500.0,0.000198,2]
[326803328,1715382645400,-500.0,0.000198,2]
[326803329,1715382645410,-500.0,0.000198,2]
[326803330,1715382645419,-500.0,0.000198,2]
[326803331,1715382645429,-500.0,0.000198,2]
[326803332,1715382645438,-500.0,0.000198,2]
[326803333,1715382645448,-500.0,0.000198,2]
[326803334,1715382645458,-500.0,0.000198,2]
[326803335,1715382645468,-500.0,0.000198,2]
[326803336,1715382645478,-500.0,0.000198,2]
[326803337,1715382645489,-500.0,0.000198,2]
[326803338,1715382645499,-500.0,0.000198,2]
[326803339,1715382645509,-500.0,0.000198,2]
[326803340,1715382645519,-500.0,0.000198,2]
[326803341,1715382645529,-500.0,0.000198,2]
[326803342,1715382645539,-500.0,0.000198,2]
[326803343,1715382645550,-500.0,0.000198,2]
[326803344,1715382645559,-500.0,0.000198,2]
[326803345,1715382645569,-500.0,0.000198,2]
[326803346,1715382645580,-500.0,0.000198,2]
[326803347,1715382645595,-500.0,0.000198,2]
[326803348,1715382645605,-500.0,0.000198,2]
[326803349,1715382645615,-500.0,0.000198,2]
[326803350,1715382645626,-500.0,0.000198,2]
[326803351,1715382645636,-500.0,0.000198,2]
[326803352,1715382645645,-500.0,0.000198,2]
[326803353,1715382645655,-500.0,0.000198,2]
[326803354,1715382645665,-500.0,0.000198,2]
[326803355,1715382645675,-500.0,0.000198,2]
[326803356,1715382645684,-500.0,0.000198,2]
[326803357,1715382645693,-500.0,0.000198,2]
[326803358,1715382645703,-500.0,0.000198,2]
[326803359,1715382645712,-500.0,0.000198,2]
[326803360,1715382645722,-500.0,0.000198,2]
[326803361,1715382645731,-500.0,0.000198,2]
[326803362,1715382645741,-500.0,0.000198,2]
[326803363,1715382645751,-500.0,0.000198,2]
[326803364,1715382645761,-500.0,0.000198,2]
[326803365,1715382645771,-500.0,0.000198,2]
[326803366,1715382645781,-500.0,0.000198,2]
[326803367,1715382645790,-500.0,0.000198,2]
[326803368,1715382645799,-500.0,0.000198,2]
[326803369,1715382645809,-500.0,0.000198,2]
[326803370,1715382645818,-500.0,0.000198,2]
[326803371,1715382645828,-500.0,0.000198,2]
[326803372,1715382645842,-500.0,0.000198,2]
[326803373,1715382645856,-500.0,0.000198,2]
[326803374,1715382645866,-500.0,0.000198,2]
[326803375,1715382645875,-500.0,0.000198,2]
[326803376,1715382645884,-500.0,0.000198,2]
[326803377,1715382645894,-500.0,0.000198,2]
[326803378,1715382645904,-500.0,0.000198,2]
[326803379,1715382645914,-500.0,0.000198,2]
[326803380,1715382645924,-500.0,0.000198,2]
[326803381,1715382645934,-500.0,0.000198,2]
[326803382,1715382645943,-500.0,0.000198,2]
[326803383,1715382645953,-500.0,0.000198,2]
[326803384,1715382645963,-500.0,0.000198,2]
[326803385,1715382645972,-500.0,0.000198,2]
[326803386,1715382645984,-500.0,0.000198,2]
[326803387,1715382645994,-500.0,0.000198,2]
[326803388,1715382646003,-500.0,0.000198,2]
[326803389,1715382646013,-500.0,0.000198,2]
[326803390,1715382646022,-500.0,0.000198,2]
[326803391,1715382646032,-500.0,0.000198,2]
[326803392,1715382646041,-500.0,0.000198,2]
[326803393,1715382646050,-500.0,0.000198,2]
[326803394,1715382646060,-500.0,0.000198,2]
[326803395,1715382646070,-500.0,0.000198,2]
[326803396,1715382646079,-500.0,0.000198,2]
[326803397,1715382646088,-500.0,0.000198,2]
[326803398,1715382646098,-500.0,0.000198,2]
[326803399,1715382646108,-500.0,0.000198,2]
[326803400,1715382646118,-500.0,0.000198,2]
[326803401,1715382646127,-500.0,0.000198,2]
[326803402,1715382646136,-500.0,0.000198,2]
[326803403,1715382646146,-500.0,0.000198,2]
[326803404,1715382646156,-500.0,0.000198,2]
[326803405,1715382646166,-500.0,0.000198,2]
[326803406,1715382646175,-500.0,0.000198,2]
[326803407,1715382646185,-500.0,0.000198,2]
[326803408,1715382646195,-500.0,0.000198,2]
[326803409,1715382646205,-500.0,0.000198,2]
[326803410,1715382646215,-500.0,0.000198,2]
[326803411,1715382646225,-500.0,0.000198,2]
[326803412,1715382646237,-500.0,0.000198,2]
[326803413,1715382646246,-500.0,0.000198,2]
[326803414,1715382646256,-500.0,0.000198,2]
[326803415,1715382646266,-200.0,0.0001984,2]
[326803416,1715382646275,-500.0,0.0001984,2]
[326803417,1715382646285,-153.94382655,0.000199,2]
[326803418,1715382646294,-153.94382652,0.000199,2]
[326803419,1715382646304,-153.94382652,0.000199,2]
[326803420,1715382646313,-153.94382652,0.000199,2]
[326803421,1715382646323,-153.94382652,0.000199,2]
[326803422,1715382646332,-153.94382652,0.000199,2]
[326803423,1715382646342,-153.94382652,0.000199,2]
[326803424,1715382646352,-153.94382652,0.000199,2]
[326803425,1715382646362,-153.94382652,0.000199,2]
[326803426,1715382646372,-153.94382652,0.000199,2]
[326803427,1715382646382,-153.94382652,0.000199,2]
[326803428,1715382646392,-153.94382652,0.000199,2]
[326803429,1715382646403,-469.94945749,0.000199,2]
[326803430,1715382646413,-686.8984,0.000199,2]
[326803431,1715382646422,-2068.0,0.0001997,15]
[326803432,1715382646432,-2326.0,0.0001997,15]
[326803433,1715382646442,-150.5,0.0001997,15]
[326803434,1715382646452,-1000.0,0.0001997,2]
[326803435,1715382646462,-2068.0,0.0001998,15]
[326803436,1715382646472,-2326.0,0.0001998,15]
[326803437,1715382646482,-150.5,0.0001998,15]
[326803438,1715382646492,-2068.0,0.0001999,15]
[326803439,1715382646502,-2326.0,0.0001999,15]
[326803440,1715382646511,-150.5,0.0001999,15]
[326803441,1715382646522,-493.5681061,0.00019998,2]
[326803442,1715382646533,-250.10468562,0.00019998,2]
[326803443,1715382646543,-173.44932261,0.00019999,2]
[326803444,1715382646553,-150.01,0.00019999,2]
[326803445,1715382646563,-3540.68546186,0.00019999,2]
[326803446,1715382646573,-1148717.40754262,0.0002,2]
[326803447,1715382648118,-152.44421668,0.00012925,2]
[326803448,1715382648127,-296.79723187,0.00012996,2]
[326803449,1715382648137,-10000.0,0.00014144,2]
[326803450,1715382648146,-340167.31229396,0.0002,2]
[326803451,1715382648158,-130175.76795917,0.0002,2]
[326803452,1715382648169,-812.2800005,0.0002,2]
[326803453,1715382648179,-286.07324571,0.0002,2]
[326803454,1715382648190,-702.5190202,0.0002,2]
[326803455,1715382648248,-1012.44805645,0.0002,2]
[326803456,1715382648259,-1663.64421668,0.0002,2]
[326803457,1715382648641,-761.05460391,0.0002,2]
[326803458,1715382648653,-465.45006,0.0002,2]
[326803459,1715382648666,-454.58727963,0.0002,2]
[326803460,1715382648677,-500.0,0.0002,2]
[326803461,1715382648688,-3264.22955857,0.0002,2]
[326803462,1715382648700,-3162.4755559,0.0002,2]
[326803463,1715382648711,-489.61162831,0.0002,2]
[326803464,1715382648722,-276.90558802,0.0002,2]
[326803465,1715382648928,-546.38881374,0.0002,2]
[326803466,1715382648940,-6640.65516025,0.0002,2]
[326803467,1715382674681,155.7885,0.00011601,2]
[326803468,1715382705123,3268.0722,0.00011601,2]
[326803469,1715382724414,1376.56111398,0.00011601,2]
[326803470,1715382740427,1379.10748613,0.00011601,2]
[326803474,1715382851007,298.53572696,0.00011601,2]
[326803475,1715382852096,155.0,0.00011601,2]
[326803476,1715382854826,155.0,0.00011601,2]
[326803477,1715382856533,155.62240542,0.00011601,2]
[326803478,1715382859754,155.09004859,0.00011601,2]
[326803483,1715382979107,400.0,0.00011563,2]
[326803484,1715383055953,-240.2364269,0.0003049,90]
[326803485,1715383055975,-157.85756768,0.0003049,120]
[326803486,1715383055997,-541.60922809,0.0003049,120]
[326803487,1715383056020,-8925.78471646,0.0003049,30]
[326803488,1715383056043,-260256.39028101,0.0003049,30]
[326803489,1715383056065,-157.24376715,0.0003049,120]
[326803490,1715383056088,-3168.05383994,0.0003049,30]
[326803491,1715383056111,-214.0,0.0003049,120]
[326803492,1715383056133,-1000.0,0.0003049,30]
[326803493,1715383056154,-1000.0,0.0003049,30]
[326803494,1715383056176,-1000.0,0.0003049,30]
[326803495,1715383056199,-1000.0,0.0003049,30]
[326803496,1715383056222,-1000.0,0.0003049,30]
[326803497,1715383056244,-1000.0,0.0003049,30]
[326803498,1715383056266,-1000.0,0.0003049,30]
[326803499,1715383056288,-1000.0,0.0003049,30]
[326803500,1715383056311,-1000.0,0.0003049,30]
[326803501,1715383056333,-1000.0,0.0003049,30]
[326803502,1715383056356,-1000.0,0.0003049,30]
[326803503,1715383056379,-1000.0,0.0003049,30]
[326803504,1715383056402,-1000.0,0.0003049,30]
[326803505,1715383056424,-1000.0,0.0003049,30]
[326803506,1715383056447,-1000.0,0.0003049,30]
[326803507,1715383056470,-1000.0,0.0003049,30]
[326803508,1715383056492,-1000.0,0.0003049,30]
[326803509,1715383056515,-1000.0,0.0003049,30]
[326803510,1715383056538,-1000.0,0.0003049,30]
[326803511,1715383056561,-1000.0,0.0003049,30]
[326803512,1715383056584,-1000.0,0.0003049,30]
[326803513,1715383056606,-1000.0,0.0003049,30]
[326803514,1715383056627,-1000.0,0.0003049,30]
[326803515,1715383056651,-1000.0,0.0003049,30]